bitfinex-derivatives/quotes_SOLF0:USTF0_20250310
["timestamp","ask_amount","ask_price","bid_price","bid_amount"]
[1741599215930,7.7205,129.51,129.42,3.9063]
[1741599216128,0.0573317,129.49,129.47,0.05168131]
[1741599216530,49.91327393,129.54,129.47,0.05168131]
[1741599216920,0.05386362,129.52,129.47,0.05168131]
[1741599217124,7.7222,129.48,129.47,0.05168131]
[1741599217321,49.91327393,129.51,129.37,130.27153256]
[1741599217526,49.91327393,129.51,129.41,7.7261]
[1741599217728,49.91327393,129.51,129.37,133.96713256]
[1741599217926,49.91327393,129.48,129.37,133.96713256]
[1741599218127,49.91327393,129.48,129.37,84.05385863]
[1741599218325,49.91327393,129.45,129.37,84.05385863]
[1741599218529,0.05241323,129.44,129.41,0.05699342]
[1741599218735,7.7264,129.42,129.41,0.05699342]
[1741599219033,0.05241323,129.44,129.37,80.35825863]
[1741599219334,3.8828,129.47,129.37,80.35825863]
[1741599219630,3.8828,129.47,129.33,3.8129]
[1741599219826,49.91327393,129.45,129.33,3.8129]
[1741599220027,3.8828,129.47,129.36,49.91327393]
[1741599220527,0.05093852,129.4,129.36,49.91327393]
[1741599220731,3.8828,129.47,129.36,49.91327393]
[1741599220920,0.05644765,129.43,129.36,49.91327393]
[1741599221823,0.05644765,129.43,129.33,5.15754172]
[1741599222128,53.95477393,129.51,129.39,49.91327393]
[1741599222340,3.9364,129.52,129.39,49.91327393]
[1741599222533,0.05432452,129.46,129.39,49.91327393]
[1741599222833,0.05432452,129.46,129.36,49.91327393]
[1741599223333,0.05919861,129.42,129.33,53.72617393]
[1741599223537,0.05919861,129.42,129.33,3.8129]
[1741599223725,7.7285,129.38,129.33,11.5437]
[1741599223931,0.05563354,129.39,129.33,3.8129]
[1741599224333,7.7295,129.36,129.33,3.8129]
[1741599224532,3.8566,129.42,129.33,3.8129]
[1741599224734,7.78601931,129.36,129.33,3.8129]
[1741599224936,49.91327393,129.4,129.33,3.8129]
[1741599225134,0.05821937,129.36,129.33,3.8129]
[1741599226732,0.05821937,129.36,129.35,7.73]
[1741599226929,1.937e-05,129.36,129.33,3.8129]
[1741599227133,1.937e-05,129.36,129.34,0.05766255]
[1741599229140,7.73,129.35,129.34,0.05766255]
[1741599229339,49.9132933,129.36,129.28,3.8882]
[1741599229635,49.91327393,129.36,129.28,3.8882]
[1741599229839,7.7316,129.33,129.28,3.8882]
[1741599230039,49.91327393,129.36,129.28,3.8882]
[1741599230243,4.0597,129.38,129.34,7.7304]
[1741599230441,4.0597,129.38,129.29,49.91327393]
[1741599230636,0.05845017,129.37,129.29,49.91327393]
[1741599230836,7.7298,129.36,129.29,49.91327393]
[1741599231038,0.05025831,129.34,129.29,49.91327393]
[1741599231239,0.05025831,129.34,129.33,7.7312]
[1741599231440,53.76987393,129.42,129.32,49.91327393]
[1741599231637,3.8566,129.42,129.32,49.96494073]
[1741599231840,3.8566,129.42,129.32,49.91327393]
[1741599232037,49.91327393,129.48,129.35,49.91327393]
[1741599232232,7.7237,129.46,129.36,3.7604]
[1741599232437,4.0725,129.47,129.38,49.91327393]
[1741599232638,0.05435562,129.42,129.4,0.0498449]
[1741599232939,7.7238,129.46,129.4,7.7766449]
[1741599233140,4.0725,129.47,129.4,7.7766449]
[1741599233141,0.05702475,129.42,129.4,0.0498449]
[1741599233542,4.0725,129.47,129.4,0.0498449]
[1741599233841,49.91327393,129.44,129.4,0.0498449]
[1741599234747,3.8274,129.44,129.4,0.0498449]
[1741599234940,0.05371855,129.45,129.4,0.0498449]
[1741599236540,0.05371855,129.45,129.42,49.91327393]
[1741599237651,0.05371855,129.45,129.4,7.7765449]
[1741599237942,0.05371855,129.45,129.4,0.0498449]
[1741599239060,49.96699248,129.45,129.4,0.0498449]
[1741599239344,0.05371855,129.45,129.4,0.0498449]
[1741599239946,49.91327393,129.44,129.4,0.0498449]
[1741599240135,49.91327393,129.44,129.36,3.7604]
[1741599240136,7.5579,129.43,129.36,3.7604]
[1741599240635,49.91327393,129.41,129.3,241.91327393]
[1741599240947,49.91327393,129.41,129.3,49.91327393]
[1741599241449,0.05887392,129.37,129.3,49.91327393]
[1741599242644,0.05887392,129.37,129.32,7.7312]
[1741599242838,0.05887392,129.37,129.33,49.91327393]
[1741599243038,0.05887392,129.37,129.34,3.9179]
[1741599244247,0.05887392,129.37,129.3,49.91327393]
[1741599245250,0.05887392,129.37,129.32,7.7314]
[1741599245450,0.05887392,129.37,129.3,49.91327393]
[1741599245852,0.05887392,129.37,129.27,53.71967393]
[1741599246152,49.91327393,129.42,129.27,3.8064]
[1741599246351,0.05803221,129.33,129.27,3.8064]
[1741599246548,49.91327393,129.36,129.27,3.8064]
[1741599246754,0.05756448,129.31,129.21,131.61718818]
[1741599246953,0.05756448,129.31,129.22,3.9188]
[1741599247155,49.91327393,129.3,129.22,3.9188]
[1741599247455,7.737,129.24,129.21,80.35825863]
[1741599247655,49.91327393,129.27,129.21,80.35825863]
[1741599247959,0.05259415,129.25,129.21,80.35825863]
[1741599248754,0.05259415,129.25,129.21,68.05475863]
[1741599248948,49.91327393,129.23,129.19,120.92141196]
[1741599249451,49.91327393,129.2,129.1,7.7449]
[1741599249649,49.91327393,129.2,129.09,194.74311265]
[1741599249854,49.91327393,129.2,129.09,244.65638658]
[1741599250056,241.91327393,129.24,129.12,7.7433]
[1741599250242,0.05887175,129.16,129.12,49.91327393]
[1741599250751,3.7524,129.26,129.15,49.91327393]
[1741599250955,49.91327393,129.25,129.1,195.9149]
[1741599251157,49.91327393,129.22,129.1,53.82817393]
[1741599251456,49.91327393,129.22,129.1,3.9149]
[1741599251651,49.91327393,129.22,129.11,7.7442]
[1741599251956,57.64987393,129.24,129.15,0.05275985]
[1741599251957,0.05204948,129.17,129.15,0.05275985]
[1741599252254,0.05204948,129.17,129.09,194.74311265]
[1741599252457,49.91327393,129.19,129.09,194.74311265]
[1741599252757,49.91327393,129.16,129.09,194.74311265]
[1741599253059,49.91327393,129.12,129.01,3.8458]
[1741599253457,0.05802536,129.14,129.11,0.02604334]
[1741599253658,49.91327393,129.12,129.0,30.0]
[1741599253858,49.91327393,129.1,129.01,7.7499]
[1741599254058,49.91327393,129.1,129.0,30.0]
[1741599254258,49.91327393,129.07,129.0,30.0]
[1741599254457,49.91327393,129.05,129.0,30.0]
[1741599254664,49.91327393,129.01,129.0,7.5098]
[1741599254959,0.0548766,129.04,129.0,7.5098]
[1741599255458,49.91327393,129.07,129.0,7.5098]
[1741599255864,49.91327393,129.12,129.0,7.5098]
[1741599256163,53.69327393,129.15,129.02,49.91327393]
[1741599256359,192.0,129.22,129.05,49.91327393]
[1741599256566,4.244,129.21,129.08,49.91327393]
[1741599256767,4.244,129.21,129.09,7.9232]
[1741599257059,4.244,129.21,129.09,57.83647393]
[1741599257264,0.04875488,129.14,129.12,0.05013021]
[1741599257464,49.91327393,129.24,129.12,49.96340414]
[1741599257665,10.61544399,129.25,129.12,49.91327393]
[1741599257855,49.91327393,129.24,129.12,49.91327393]
[1741599258058,49.91327393,129.21,129.1,3.993]
[1741599258259,49.91327393,129.24,129.1,3.993]
[1741599258463,49.91327393,129.24,129.12,49.91327393]
[1741599258663,10.61544399,129.25,129.15,49.91327393]
[1741599258864,10.61544399,129.25,129.18,49.91327393]
[1741599259168,10.61544399,129.25,129.21,49.91327393]
[1741599259663,49.91327393,129.31,129.19,8.1385]
[1741599259968,49.91327393,129.28,129.19,4.1723]
[1741599260169,49.91327393,129.25,129.12,49.91327393]
[1741599260367,49.91327393,129.22,129.12,49.91327393]
[1741599261068,57.65337393,129.19,129.08,4.1723]
[1741599261269,49.91327393,129.19,129.08,4.1723]
[1741599261471,0.05792783,129.18,129.16,0.05154674]
[1741599261671,7.79822783,129.18,129.08,4.1723]
[1741599261868,49.91327393,129.19,129.08,4.1723]
[1741599262069,0.5521,129.2,129.08,4.1723]
[1741599262374,49.91327393,129.16,129.08,4.1723]
[1741599262759,49.91327393,129.16,129.03,49.91327393]
[1741599262965,49.97068584,129.13,129.11,0.04057941]
[1741599263164,0.05741191,129.13,129.11,0.04057941]
[1741599263471,3.88,129.13,129.03,4.1085]
[1741599263671,3.88,129.13,129.11,0.04057941]
[1741599263672,0.05540556,129.13,129.11,0.04057941]
[1741599263865,49.91327393,129.12,129.02,3.9132]
[1741599264065,7.7444,129.11,129.02,3.9132]
[1741599264271,49.91327393,129.12,129.02,3.9132]
[1741599264574,192.0,129.16,129.06,49.91327393]
[1741599264766,49.91327393,129.18,129.06,49.91327393]
[1741599265066,0.05757381,129.12,129.03,49.91327393]
[1741599265267,0.05757381,129.12,129.06,49.91327393]
[1741599265466,192.0,129.17,129.09,49.91327393]
[1741599265668,1.54798761,129.2,129.1,4.0214]
[1741599266064,0.04896753,129.14,129.1,4.0214]
[1741599267475,0.04896753,129.14,129.07,3.9767]
[1741599267872,0.04896753,129.14,129.02,4.0669]
[1741599268068,0.04896753,129.14,129.02,8.0436]
[1741599268267,49.91327393,129.15,129.04,7.7482]
[1741599268468,192.0,129.17,129.03,49.91327393]
[1741599268667,0.05802681,129.09,129.02,8.0436]
[1741599268868,0.05802681,129.09,129.04,49.91327393]
[1741599269572,192.0,129.17,129.07,49.91327393]
[1741599270374,2.05798761,129.2,129.1,49.91327393]
[1741599270568,2.05798761,129.2,129.11,3.8898]
[1741599270770,49.91327393,129.19,129.11,3.8898]
[1741599270972,0.05150805,129.16,129.14,0.05151649]
[1741599273074,196.6524,129.29,129.14,0.05151649]
[1741599273475,196.6524,129.29,129.12,54.07667393]
[1741599273772,49.91327393,129.27,129.15,49.91327393]
[1741599273969,49.91327393,129.27,129.12,54.07667393]
[1741599274175,192.0,129.28,129.12,54.07667393]
[1741599274176,192.0,129.28,129.15,49.91327393]
[1741599274371,192.0,129.28,129.18,0.05919101]
[1741599274683,0.05740766,129.21,129.18,0.05919101]
[1741599274973,7.7372,129.23,129.15,49.91327393]
[1741599275172,0.05036568,129.21,129.18,0.05419388]
[1741599275672,49.91327393,129.27,129.12,54.07667393]
[1741599275872,4.6524,129.29,129.18,0.05562501]
[1741599276070,0.05398028,129.21,129.18,49.96889894]
[1741599276265,49.91327393,129.3,129.12,54.07667393]
[1741599276465,49.91327393,129.3,129.15,49.91327393]
[1741599276975,49.91327393,129.3,129.13,4.1768]
[1741599277172,49.91327393,129.26,129.13,4.1768]
[1741599277683,0.05950677,129.23,129.2,0.05305162]
[1741599279477,7.7328,129.31,129.22,7.7374]
[1741599279677,192.0,129.35,129.21,3.9886]
[1741599279678,42.3932901,129.34,129.21,3.9886]
[1741599279884,42.3932901,129.34,129.23,49.91327393]
[1741599280778,0.05561152,129.3,129.27,0.0574984]
[1741599281169,49.91327393,129.28,129.15,49.91327393]
[1741599281772,4.6635,129.29,129.15,49.91327393]
[1741599282073,7.7348,129.27,129.18,49.91327393]
[1741599282278,49.91327393,129.3,129.18,49.91327393]
[1741599282876,0.05528176,129.25,129.23,0.05116826]
[1741599283079,192.5741,129.33,129.23,0.05116826]
[1741599283268,4.0894,129.34,129.22,7.8825]
[1741599284281,0.05269,129.29,129.27,0.0574285]
[1741599284577,4.0894,129.34,129.27,0.0574285]
[1741599284878,0.05921859,129.29,129.27,0.0574285]
[1741599285074,4.0894,129.34,129.27,0.0574285]
[1741599285279,0.05553723,129.32,129.27,0.0574285]
[1741599285876,7.7342,129.28,129.27,0.0574285]
[1741599288481,0.05464103,129.29,129.27,0.0574285]
[1741599289181,196.1451,129.38,129.27,0.0574285]
[1741599289585,196.1451,129.38,129.23,53.86757393]
[1741599289971,196.1451,129.38,129.26,49.91327393]
[1741599290182,7.7302,129.35,129.29,49.91327393]
[1741599290379,10.61544399,129.39,129.3,4.0432]
[1741599290590,0.05372948,129.33,129.31,0.05840573]
[1741599290783,0.685,129.41,129.31,0.05840573]
[1741599290981,0.05522068,129.33,129.3,4.0432]
[1741599291287,0.685,129.41,129.3,4.0432]
[1741599291288,241.91327393,129.42,129.31,0.05624152]
[1741599291479,241.91327393,129.42,129.32,49.91327393]
[1741599291687,11.30044399,129.44,129.32,49.91327393]
[1741599292078,49.91327393,129.42,129.32,49.91327393]
[1741599292490,10.61544399,129.44,129.35,49.91327393]
[1741599292981,10.61544399,129.44,129.36,0.05802966]
[1741599293288,10.61544399,129.44,129.35,49.91327393]
[1741599293487,49.91327393,129.45,129.31,3.9543]
[1741599293884,192.0,129.47,129.31,11.6865]
[1741599293885,49.91327393,129.42,129.31,11.6865]
[1741599294185,0.05394425,129.39,129.37,0.05398935]
[1741599294585,192.0,129.47,129.34,12.0006]
[1741599294882,49.91327393,129.45,129.37,0.05030377]
[1741599295279,0.05370577,129.42,129.36,49.91327393]
[1741599295482,0.05370577,129.42,129.4,0.04891894]
[1741599295786,4.7228,129.5,129.4,4.11351894]
[1741599295978,4.7228,129.5,129.4,4.0646]
[1741599296575,7.7232,129.47,129.4,4.0646]
[1741599296775,0.0538246,129.46,129.44,0.05002574]
[1741599298079,50.59657393,129.54,129.44,0.05002574]
[1741599298080,60.52871792,129.55,129.44,0.05002574]
[1741599298484,10.61544399,129.55,129.45,49.91327393]
[1741599298679,7.7198,129.53,129.45,49.91327393]
[1741599298879,10.61544399,129.55,129.45,49.91327393]
[1741599299385,10.61544399,129.55,129.53,7.7192]
[1741599299683,82.42842004,129.64,129.51,49.91327393]
[1741599299880,192.0,129.63,129.51,49.91327393]
[1741599300081,49.91327393,129.61,129.49,4.1022]
[1741599300480,0.05530118,129.56,129.54,0.05565632]
[1741599300878,7.7161,129.59,129.51,49.91327393]
[1741599301188,31.77784611,129.64,129.57,49.91327393]
[1741599301487,31.77784611,129.64,129.54,0.05566357]
[1741599301684,31.77784611,129.64,129.49,4.1022]
[1741599301884,7.7147,129.61,129.52,49.91327393]
[1741599302085,49.91327393,129.63,129.52,49.91327393]
[1741599302290,0.0576541,129.58,129.55,0.0538289]
[1741599302675,0.0576541,129.58,129.51,49.91327393]
[1741599302877,0.0576541,129.58,129.55,0.05131748]
[1741599303078,31.77784611,129.64,129.55,0.05131748]
[1741599303285,0.05304541,129.58,129.54,49.91327393]
[1741599303489,31.77784611,129.64,129.57,49.91327393]
[1741599303879,0.0522593,129.62,129.54,49.91327393]
[1741599304277,31.77784611,129.64,129.59,0.05061427]
[1741599304884,0.05185617,129.63,129.59,0.05061427]
[1741599305087,7.7151,129.6,129.59,0.05061427]
[1741599305893,0.05185617,129.63,129.59,0.05061427]
[1741599307893,7.7163,129.59,129.53,49.91327393]
[1741599308089,0.05185617,129.63,129.51,49.91327393]
[1741599308285,49.91327393,129.61,129.52,7.7195]
[1741599308487,49.91327393,129.62,129.5,8.4175]
[1741599308691,31.77784611,129.64,129.52,49.91327393]
[1741599308891,31.77784611,129.64,129.55,49.91327393]
[1741599309093,31.77784611,129.64,129.52,49.91327393]
[1741599309284,0.05167098,129.59,129.58,7.7163]
[1741599309480,0.05167098,129.59,129.57,0.05156904]
[1741599309681,49.91327393,129.62,129.5,8.4175]
[1741599309890,49.91327393,129.59,129.5,8.4175]
[1741599310393,3.8507,129.61,129.53,7.7189]
[1741599310594,7.717,129.57,129.53,7.7189]
[1741599310890,3.8507,129.61,129.53,7.7189]
[1741599310891,3.8507,129.61,129.53,7.7191]
[1741599311089,7.7174,129.57,129.53,7.7191]
[1741599311294,0.05386985,129.58,129.56,0.05849733]
[1741599311584,7.7169,129.57,129.5,8.4175]
[1741599311782,49.91327393,129.6,129.49,4.1022]
[1741599311983,0.05656358,129.58,129.49,4.1022]
[1741599312381,49.91327393,129.57,129.45,8.4709]
[1741599312588,49.91327393,129.54,129.45,8.4709]
[1741599312784,7.7201,129.52,129.45,8.4709]
[1741599312982,4.1103,129.59,129.5,49.91327393]
[1741599313388,3.8507,129.61,129.5,49.91327393]
[1741599313593,0.05023206,129.56,129.5,49.91327393]
[1741599313793,0.05023206,129.56,129.53,49.91327393]
[1741599313996,0.05023206,129.56,129.54,0.05148975]
[1741599314189,7.7166,129.58,129.54,0.05148975]
[1741599314388,4.0358,129.64,129.54,0.05148975]
[1741599314695,0.05941046,129.56,129.53,49.91327393]
[1741599314898,4.0358,129.64,129.58,0.05880061]
[1741599315092,49.91327393,129.61,129.58,0.05880061]
[1741599315292,7.7171,129.57,129.51,4.2593]
[1741599315485,49.91327393,129.61,129.51,4.2593]
[1741599315685,49.91327393,129.61,129.51,61.89247393]
[1741599315994,49.91327393,129.61,129.51,4.2593]
[1741599316185,49.91327393,129.61,129.52,7.7196]
[1741599316384,49.91327393,129.61,129.51,4.2593]
[1741599316585,0.05061176,129.57,129.55,0.05505635]
[1741599316784,0.05061176,129.57,129.46,4.0819]
[1741599316993,3.96881176,129.57,129.46,4.0819]
[1741599317190,3.9182,129.57,129.49,7.7212]
[1741599317495,3.9182,129.57,129.46,4.0819]
[1741599317496,53.83147393,129.57,129.46,4.0819]
[1741599317701,49.91327393,129.54,129.43,4.1566]
[1741599317992,49.91327393,129.54,129.42,49.91327393]
[1741599317993,0.0505005,129.53,129.5,3.232e-05]
[1741599318195,49.91327393,129.51,129.38,58.13747393]
[1741599318400,3.9182,129.5,129.38,58.13747393]
[1741599318791,49.91327393,129.48,129.38,58.13747393]
[1741599318996,7.7276,129.39,129.35,49.91327393]
[1741599319201,49.91327393,129.42,129.31,12.138]
[1741599319398,3.9182,129.41,129.31,12.138]
[1741599319703,0.04959957,129.38,129.36,0.0523422]
[1741599320099,0.04959957,129.38,129.29,49.91327393]
[1741599320299,0.04959957,129.38,129.25,8.113]
[1741599320300,0.04959957,129.38,129.25,11.9826]
[1741599320494,49.91327393,129.36,129.25,11.9826]
[1741599320705,49.91327393,129.39,129.27,49.91327393]
[1741599321003,3.9182,129.41,129.32,7.7316]
[1741599321196,3.9182,129.41,129.3,49.91327393]
[1741599321397,0.05085031,129.34,129.32,0.05951797]
[1741599321600,3.9182,129.41,129.32,0.05951797]
[1741599321795,0.05812474,129.34,129.25,11.9826]
[1741599322104,49.91327393,129.38,129.25,11.9826]
[1741599322302,0.04972257,129.31,129.28,0.05434501]
[1741599322699,4.0994,129.34,129.25,11.9826]
[1741599323005,0.05859216,129.31,129.28,0.05680551]
[1741599324204,49.97186609,129.31,129.28,0.05680551]
[1741599324403,0.05859216,129.31,129.28,0.05680551]
[1741599327401,1.54559505,129.4,129.29,49.91327393]
[1741599327605,1.54559505,129.4,129.28,0.05680551]
[1741599327606,1.54559505,129.4,129.32,49.91327393]
[1741599327804,1.54559505,129.4,129.28,8.03650551]
[1741599327805,1.54559505,129.4,129.29,49.91327393]
[1741599328308,1.54559505,129.4,129.35,49.91327393]
[1741599328504,4.014,129.44,129.3,49.91327393]
[1741599328696,0.05488138,129.39,129.36,0.05626071]
[1741599328897,0.05488138,129.39,129.38,7.7282]
[1741599329103,0.05488138,129.39,129.36,0.05626071]
[1741599330016,192.0,129.47,129.38,49.91327393]
[1741599330207,49.91327393,129.48,129.38,49.91327393]
[1741599330515,7.7252,129.44,129.37,7.7284]
[1741599330705,49.91327393,129.48,129.3,241.91327393]
[1741599330908,49.91327393,129.41,129.28,57.89297393]
[1741599331108,7.7265,129.41,129.31,49.91327393]
[1741599331308,0.05328169,129.36,129.33,0.05546044]
[1741599331709,12.1723,129.43,129.3,49.91327393]
[1741599332006,0.05698665,129.36,129.33,0.05685714]
[1741599332417,49.91327393,129.41,129.3,49.91327393]
[1741599332624,49.91327393,129.41,129.28,7.9797]
[1741599332625,0.05616066,129.36,129.33,0.0580585]
[1741599333115,0.05051389,129.36,129.33,0.05724591]
[1741599333912,53.82378782,129.36,129.23,49.91327393]
[1741599334117,4.0741,129.35,129.23,49.91327393]
[1741599335017,49.91327393,129.33,129.23,49.91327393]
[1741599335222,0.05304993,129.3,129.28,0.05485948]
[1741599335526,4.0741,129.35,129.28,0.05485948]
[1741599335814,0.05218988,129.3,129.28,0.05485948]
[1741599336115,4.0741,129.35,129.28,0.05485948]
[1741599336320,0.05871849,129.3,129.28,0.05485948]
[1741599336614,4.0741,129.35,129.28,0.05485948]
[1741599336814,0.05258787,129.3,129.28,0.05485948]
[1741599337026,7.7336,129.29,129.28,0.05485948]
[1741599337223,0.05147482,129.3,129.22,3.9039]
[1741599337522,49.91327393,129.32,129.22,3.9039]
[1741599338120,8.1975,129.35,129.22,3.9039]
[1741599338317,0.05565659,129.28,129.26,0.0525313]
[1741599338518,7.732,129.32,129.27,7.7343]
[1741599338718,0.05752994,129.28,129.27,7.7343]
[1741599338920,8.1975,129.35,129.24,49.91327393]
[1741599339125,0.04943973,129.29,129.27,7.7346]
[1741599339313,0.04943973,129.29,129.24,49.91327393]
[1741599339519,4.0741,129.35,129.24,49.91327393]
[1741599339719,7.7342,129.28,129.27,0.04904831]
[1741599340120,4.0741,129.35,129.26,0.05364602]
[1741599340424,4.0741,129.35,129.24,49.91327393]
[1741599340626,7.78819651,129.32,129.29,0.04944055]
[1741599340823,0.05619651,129.32,129.29,0.04944055]
[1741599341228,7.7329,129.31,129.29,0.04944055]
[1741599341428,0.05619651,129.32,129.29,0.04944055]
[1741599341819,7.78819651,129.32,129.29,0.04944055]
[1741599342024,0.05619651,129.32,129.29,0.04944055]
[1741599344030,0.05619651,129.32,129.31,7.7324]
[1741599344535,0.05619651,129.32,129.29,0.04944055]
[1741599345028,0.05619651,129.32,129.31,7.7324]
[1741599345235,4.1042,129.4,129.29,49.96271448]
[1741599345528,4.1042,129.4,129.3,4.2552]
[1741599345738,7.7293,129.37,129.33,7.7307]
[1741599345934,192.0,129.45,129.32,49.91327393]
[1741599346143,7.7279,129.39,129.35,7.7298]
[1741599346331,192.0,129.52,129.37,49.91327393]
[1741599346635,0.05593461,129.38,129.37,57.64207393]
[1741599346829,49.91327393,129.49,129.37,49.91327393]
[1741599347030,205.53726306,129.52,129.38,12.1081]
[1741599347236,49.91327393,129.51,129.38,12.1081]
[1741599347438,49.91327393,129.48,129.38,12.1081]
[1741599347841,7.7253,129.43,129.38,12.1081]
[1741599348036,49.91327393,129.48,129.38,12.1081]
[1741599348037,0.05880343,129.44,129.42,0.05534659]
[1741599348344,0.05880343,129.44,129.38,12.1081]
[1741599348548,0.05880343,129.44,129.42,0.05358081]
[1741599348944,205.53726306,129.52,129.42,49.96685474]
[1741599349145,5.53046306,129.52,129.42,49.91327393]
[1741599349346,7.7212,129.5,129.43,7.7246]
[1741599349640,5.53046306,129.52,129.42,49.91327393]
[1741599350241,0.0525516,129.48,129.46,0.05764005]
[1741599350647,7.7228,129.47,129.46,0.05764005]
[1741599351446,7.725,129.44,129.38,12.1081]
[1741599351739,49.91327393,129.49,129.38,12.1081]
[1741599352451,49.91327393,129.41,129.26,192.0]
[1741599352746,49.91327393,129.38,129.28,49.91327393]
[1741599352950,7.7315,129.33,129.32,0.04989902]
[1741599354056,0.05101969,129.34,129.32,0.04989902]
[1741599355648,195.8026,129.41,129.32,0.04989902]
[1741599355856,3.8026,129.41,129.32,0.04989902]
[1741599356161,192.0,129.46,129.3,49.91327393]
[1741599356451,4.0618,129.45,129.3,49.91327393]
[1741599356646,4.0618,129.45,129.27,61.58037393]
[1741599356843,0.05484348,129.37,129.35,0.05338102]
[1741599357255,49.91327393,129.39,129.35,0.05338102]
[1741599357459,7.7303,129.35,129.27,11.6671]
[1741599358051,7.7289,129.37,129.27,11.6671]
[1741599358250,4.0618,129.38,129.27,11.6671]
[1741599358451,192.0,129.41,129.29,49.91327393]
[1741599358757,196.0618,129.46,129.31,0.05827287]
[1741599359061,196.0618,129.46,129.32,49.91327393]
[1741599359550,7.7265,129.41,129.35,7.7296]
[1741599359852,196.0618,129.46,129.27,11.6671]
[1741599360055,7.7287,129.38,129.37,0.05390138]
[1741599360254,49.91327393,129.39,129.27,11.6671]
[1741599360455,49.91327393,129.36,129.27,11.6671]
[1741599360755,49.91327393,129.36,129.27,7.6223]
[1741599361560,0.05893429,129.33,129.3,0.05755138]
[1741599361954,0.05893429,129.33,129.28,4.097]
[1741599362152,0.05893429,129.33,129.3,0.05443542]
[1741599362554,49.91327393,129.45,129.31,49.91327393]
[1741599362764,10.64634682,129.43,129.34,49.91327393]
[1741599362952,10.64634682,129.43,129.3,49.91327393]
[1741599363155,10.64634682,129.43,129.37,7.7287]
[1741599363355,10.64634682,129.43,129.3,49.91327393]
[1741599363656,0.05537604,129.38,129.32,7.7315]
[1741599363859,0.05537604,129.38,129.35,0.05063562]
[1741599364259,7.729,129.37,129.35,0.05063562]
[1741599364559,0.05133393,129.38,129.3,49.91327393]
[1741599364756,0.05133393,129.38,129.35,0.05740787]
[1741599364952,60.55962075,129.43,129.35,0.05740787]
[1741599365156,0.05680121,129.38,129.35,0.05740787]
[1741599365359,0.05680121,129.38,129.28,4.097]
[1741599365555,49.91327393,129.37,129.28,4.097]
[1741599365751,49.91327393,129.37,129.27,7.6223]
[1741599365948,49.91327393,129.34,129.23,53.85377393]
[1741599366154,49.91327393,129.34,129.23,3.9405]
[1741599366363,7.7307,129.34,129.29,7.7334]
[1741599366557,49.91327393,129.4,129.29,7.7334]
[1741599366755,0.05305062,129.33,129.3,0.05102338]
[1741599366951,49.91327393,129.34,129.23,3.9405]
[1741599367164,49.91327393,129.31,129.2,3.9072]
[1741599367354,49.91327393,129.28,129.19,3.9405]
[1741599367555,49.91327393,129.28,129.15,174.16313461]
[1741599367754,49.91327393,129.28,129.16,88.14906376]
[1741599367950,7.7361,129.25,129.2,7.7384]
[1741599368159,0.05472249,129.23,129.21,0.0495152]
[1741599368553,7.7352,129.27,129.22,7.7378]
[1741599368759,0.05463895,129.23,129.22,7.7378]
[1741599368954,49.91327393,129.31,129.18,49.91327393]
[1741599369159,0.04992409,129.24,129.21,0.05563956]
[1741599369358,0.04992409,129.24,129.21,49.96891349]
[1741599369557,49.91327393,129.36,129.21,53.77327393]
[1741599369761,192.0,129.4,129.26,49.91327393]
[1741599369762,57.59677393,129.39,129.26,49.91327393]
[1741599369959,42.42419293,129.38,129.27,7.7513]
[1741599370260,42.42419293,129.38,129.28,49.91327393]
[1741599370761,0.05299551,129.34,129.32,0.05248086]
[1741599371762,7.7312,129.33,129.32,0.05248086]
[1741599371968,0.05299551,129.34,129.32,0.05248086]
[1741599372467,49.96626944,129.34,129.24,49.91327393]
[1741599372771,49.91327393,129.34,129.24,49.91327393]
[1741599372966,49.91327393,129.34,129.22,7.7016]
[1741599373461,0.05360165,129.29,129.27,0.05584296]
[1741599373663,49.91327393,129.34,129.27,0.05584296]
[1741599373970,0.05006941,129.29,129.27,0.05584296]
[1741599374172,0.04887829,129.32,129.27,0.05584296]
[1741599374463,241.91327393,129.36,129.27,0.05584296]
[1741599374658,0.05300729,129.31,129.25,4.0463]
[1741599374859,0.05300729,129.31,129.3,0.05255506]
[1741599375062,0.05300729,129.31,129.22,7.7016]
[1741599375266,7.7337,129.29,129.24,7.7361]
[1741599375571,49.91327393,129.33,129.22,7.7016]
[1741599376172,0.05261893,129.29,129.26,0.05526362]
[1741599376571,7.7345,129.28,129.26,0.05526362]
[1741599376771,0.05261893,129.29,129.26,0.05526362]
[1741599376968,7.7348,129.27,129.26,6.362e-05]
[1741599378861,0.05261893,129.29,129.26,6.362e-05]
[1741599380570,7.7348,129.27,129.26,6.362e-05]